Cogmind - Beta 12 @@@ ROGUE MODE // 2023.04.21 @ 16:14:21 Player: btmk16 Result: Destroyed by H-77 Assassin with Coil Gun Performance ------------- Evolutions (7) 3500 Regions Visited (32) 6400 Robots Destroyed (143) 715 Value Destroyed (3942) 3942 Prototype IDs (52) 1040 Alien Tech Used (1) 200 Bonus (6575) 6575 TOTAL SCORE: 22372 Bonus ------- High Alert Combat Kills 221 Follower Combat Kills 3066 Met Data Miner 300 Destroyed Z-Imprinter 1000 Met Warlord at Base 500 MAIN.C Attacked Warlord 500 Warlord Defense Kills 334 Built Enhanced Grunts 300 Met R17 at Cetus 500 Friendly Fire -146 Cogmind --------- Core Integrity 0/1300 Matter 24/300 Energy 100/100 System Corruption 25% Temperature Cool (0) Movement Core (50) Location -3/Testing Parts ------- > --- POWER (2) -------- (None) > --- PROPULSION (7) --- (None) > --- UTILITY (10) ----- Experimental Optical Array > --- WEAPON (3) ------- (None) > --- INVENTORY (5) ---- Surveybot 24 Chip Antimissile System Omega Cannon Peak State ------------ > --- POWER ------------ Vortex Chain Reactor > --- PROPULSION ------- Improved Antigrav System Improved Linear Gravjet Cooled Antigrav System Cooled Antigrav System Combat Linear Gravjet Combat Linear Gravjet Combat Linear Gravjet > --- UTILITY ---------- Experimental Heat Sink Experimental Optical Array Experimental Sensor Array Advanced Signal Interpreter Surveybot 24 Scanner Experimental Reaction Control System Centrium Medium Armor Plating System Mapper > --- WEAPON ----------- Heavy Autocannon Particle Cleaver > --- INVENTORY -------- Gyrokinetic Inverter Surveybot 24 Chip Experimental Phase Shifter Improved Cloaking Device Precision Rocket Launcher [Rating: 172] Favorites ----------- Power Antimatter Reactor Engine Light Angular Momentum Engine Power Core Light Nuclear Core Reactor Antimatter Reactor Propulsion Cooled VTOL Module Treads Light Treads Hover Unit Combat Linear Gravjet Flight Unit Cooled VTOL Module Utility Experimental Optical Array Device Experimental Sensor Array Storage High-capacity Storage Unit Processor Experimental Optical Array Hackware Improved System Shield Protection Light Armor Plating Weapon Improved Medium Laser Energy Gun Improved Medium Laser Energy Cannon Compact HERF Cannon Ballistic Gun Light Assault Rifle Ballistic Cannon Hardcell Cannon Launcher Precision Rocket Launcher Impact Weapon Powered Hammer Slashing Weapon Falx Piercing Weapon Enhanced Force Lance Build | -11 -10 -10 -9 -9 -9 -8 -8 -7 -7 -7 -7 -7 -7 -7 -6 -6 -6 -6 -6 -5 -5 -5 -5 -5 -4 -4 -4 -4 -4 -4 -3 -3 ------- Run | Jun Mat Min Mat Min Exi Min Mat Fac Was Fac Low Low Zio Dee Pro Fac Low Low Dat Pro Fac Upp Upp War Pro Fac Ext Cet Arc Hub Res Tes Slots Evolved 14 | . . . 2 . . . 2 2 . . . . . . . 2 . . . . 2 . . . . 2 . . . . 2 . Power 1 | . . . . . . . . 1 . . . . . . . . . . . . . . . . . . . . . . . . Propulsion 4 | . . . 1 . . . 2 1 . . . . . . . . . . . . . . . . . . . . . . . . Utility 8 | . . . 1 . . . . . . . . . . . . 2 . . . . 2 . . . . 1 . . . . 2 . Weapon 1 | . . . . . . . . . . . . . . . . . . . . . . . . . . 1 . . . . . . Parts Attached 263 | 8 13 5 12 4 . 5 17 5 5 10 3 . 11 4 8 24 7 . . 2 1 . 3 36 1 5 15 7 5 2 21 24 Power 25 | 1 1 1 1 . . . 1 1 2 1 . . 1 . . 5 . . . . . . . 3 . . . . . 1 3 3 Engine 11 | 1 1 . 1 . . . 1 1 1 . . . 1 . . 2 . . . . . . . 2 . . . . . . . . Core 4 | . . 1 . . . . . . . 1 . . . . . 1 . . . . . . . . . . . . . . 1 . Reactor 10 | . . . . . . . . . 1 . . . . . . 2 . . . . . . . 1 . . . . . 1 2 3 Propulsion 72 | 2 2 1 6 . . 1 5 1 1 4 1 . . 1 1 8 . . . . 1 . . 17 . 2 2 . . 1 6 9 Treads 12 | 2 2 1 6 . . 1 . . . . . . . . . . . . . . . . . . . . . . . . . . Leg . | . . . . . . . . . . . . . . . . . . . . . . . . . . . . . . . . . Wheel . | . . . . . . . . . . . . . . . . . . . . . . . . . . . . . . . . . Hover 32 | . . . . . . . . . . . 1 . . 1 1 1 . . . . 1 . . 13 . 2 2 . . 1 6 3 Flight 28 | . . . . . . . 5 1 1 4 . . . . . 7 . . . . . . . 4 . . . . . . . 6 Utility 101 | 2 2 2 5 4 . . 8 1 1 3 2 . 8 3 6 6 5 . . . . . 1 10 1 2 7 7 5 . 7 3 Device 45 | 1 . 2 1 3 . . 3 . . 1 2 . . 2 5 2 4 . . . . . 1 6 1 . 5 . 1 . 3 2 Storage 9 | 1 1 . 1 . . . 1 . . . . . . 1 . . . . . . . . . 3 . . . . . . 1 . Processor 14 | . . . . . . . . 1 . 2 . . 7 . 1 3 . . . . . . . . . . . . . . . . Hackware 9 | . . . . . . . 1 . 1 . . . 1 . . . . . . . . . . . . 1 . . 3 . 2 . Protection 24 | . 1 . 3 1 . . 3 . . . . . . . . 1 1 . . . . . . 1 . 1 2 7 1 . 1 1 Artifact . | . . . . . . . . . . . . . . . . . . . . . . . . . . . . . . . . . Weapon 65 | 3 8 1 . . . 4 3 2 1 2 . . 2 . 1 5 2 . . 2 . . 2 6 . 1 6 . . . 5 9 Energy Gun 11 | 3 4 1 . . . 2 1 . . . . . . . . . . . . . . . . . . . . . . . . . Energy Cannon 2 | . . . . . . . . . . . . . . . . . . . . . . . . . . . . . . . 1 1 Ballistic Gun 2 | . 2 . . . . . . . . . . . . . . . . . . . . . . . . . . . . . . . Ballistic Cannon 8 | . . . . . . . . . . . . . . . . . . . . . . . . 3 . . 2 . . . . 3 Launcher 11 | . 2 . . . . 2 . 1 . . . . . . . 1 1 . . 1 . . 1 . . . . . . . 2 . Special Weapon . | . . . . . . . . . . . . . . . . . . . . . . . . . . . . . . . . . Impact Weapon 5 | . . . . . . . 2 1 . 2 . . . . . . . . . . . . . . . . . . . . . . Slashing Weapon 24 | . . . . . . . . . 1 . . . 2 . . 4 1 . . 1 . . 1 3 . 1 4 . . . 1 5 Piercing Weapon 2 | . . . . . . . . . . . . . . . 1 . . . . . . . . . . . . . . . 1 . Special Melee Weapon . | . . . . . . . . . . . . . . . . . . . . . . . . . . . . . . . . . Unidentified Prototypes 37 | . 1 . . . . . 2 1 . 1 2 . 5 4 1 2 . . . . . . . 9 . 1 . . . . 1 7 Parts Lost 69 | . 2 . . . . 2 3 . 1 . . . . 4 2 1 . . . 2 . . 1 1 . 1 7 . . 1 24 17 Power 7 | . . . . . . . 1 . . . . . . 1 . . . . . . . . . . . . . . . . 3 2 Propulsion 27 | . . . . . . 2 . . 1 . . . . 2 1 1 . . . 2 . . . 1 . . 2 . . 1 6 8 Utility 23 | . . . . . . . 2 . . . . . . 1 . . . . . . . . 1 . . . 5 . . . 8 6 Weapon 12 | . 2 . . . . . . . . . . . . . 1 . . . . . . . . . . 1 . . . . 7 1 Highest Loss Streak 14 | . 2 . . . . 2 2 . 1 . . . . 4 1 1 . . . 1 . . 1 1 . 1 4 . . 1 14 10 To Critical Strikes 1 | . 1 . . . . . . . . . . . . . . . . . . . . . . . . . . . . . . . Average Slot Usage (%) 92 | . 99 100 96 99 100 98 95 88 98 98 94 100 99 92 83 85 93 93 93 86 73 77 74 93 88 89 90 95 95 94 93 41 Engine 4 | . 14 8 5 11 11 11 8 8 9 5 . . 6 4 . . . . . . . . . 2 . . . . . . . . Core 1 | . . 5 5 . . . . . . 1 7 7 . . . . 6 6 6 6 5 5 5 1 . . . . . . . . Reactor 2 | . . . . . . . . . 4 7 7 7 7 7 7 4 . . . . . . . 2 5 5 5 5 5 4 8 4 Treads 10 | . 28 28 31 33 33 32 . . . . . . . . . . . . . . . . . . . . . . . . . . Hover 10 | . . . . . . . . . . . . 7 7 5 6 6 . . . . 1 5 5 22 38 35 34 35 35 35 29 3 Flight 14 | . . . . . . . 43 46 45 45 42 42 42 40 34 34 43 43 43 36 27 27 27 14 . . . . . . . 9 Device 11 | . 8 9 11 11 11 11 7 . . . 7 7 2 2 7 11 13 12 12 12 11 11 11 21 26 20 20 20 12 5 8 . Storage 4 | . 14 14 11 11 11 11 2 7 . . . . . 1 . . . . . . . . . 4 . . . . . . . . Processor 6 | . . . . . . . . 2 7 10 7 7 13 16 13 12 12 12 12 12 11 11 11 11 11 10 10 10 10 10 9 7 Hackware 2 | . . . . . . . 8 7 13 10 7 7 5 . . . . . . . . . . . . 5 1 . 8 15 16 6 Protection 4 | . 5 4 9 9 11 11 6 . . . . . . . . 4 4 6 6 6 5 5 2 . . 5 6 10 9 10 8 4 Energy Gun 9 | . 27 27 22 22 22 21 11 7 5 6 . . . . . . . . . . . . . . . . . . . . . . Ballistic Cannon 1 | . . . . . . . . . . . . . . . . . . . . . . . . . 5 5 4 10 10 10 5 . Impact Weapon 1 | . . . . . . . 6 7 7 8 14 14 9 . . . . . . . . . . . . . . . . . . . Slashing Weapon 4 | . . . . . . . . . 1 . . . 4 14 13 8 11 12 12 11 11 11 7 8 . 4 7 5 5 5 3 4 Naked Turns . | . . . . . . . . . . . . . . . . . . . . . . . . . . . . . . . . . Heaviest Build 89 | 13 53 53 72 59 59 59 24 27 30 29 28 28 28 25 24 30 24 23 23 23 23 23 23 83 82 89 89 78 78 73 59 37 Greatest Support 91 | 40 40 40 60 60 60 62 25 30 30 30 30 30 30 30 25 30 30 24 24 24 24 24 31 90 90 91 90 90 90 91 89 44 Greatest Overweight (x) 8 | 2 1 1 1 . . 2 . 8 . . . . 1 . . . . . . . . . . 1 . . . . . . . 1 Average Overweight (x) . | . . 1 . . . . . . . . . . . . . . . . . . . . . . . . . . . . . . Largest Inventory Capacity 20 | 8 20 20 20 20 20 20 20 10 10 5 5 5 5 5 5 5 5 5 5 5 5 5 5 5 5 5 5 5 5 5 5 5 Average Capacity 9 | 7 12 20 20 20 20 20 6 10 5 5 5 5 5 5 5 5 5 5 5 5 5 5 5 5 5 5 5 5 5 5 5 5 Most Carried 20 | 6 10 20 20 20 20 20 20 10 10 5 5 5 5 5 5 5 5 5 5 5 5 5 5 5 5 5 5 5 5 5 5 5 Average Carried 9 | 4 8 18 19 20 20 20 5 9 5 4 4 5 4 4 4 4 5 5 5 5 5 5 4 4 5 4 4 5 4 5 4 4 Final Capacity 20 | 8 20 20 20 20 20 20 10 10 5 5 5 5 5 5 5 5 5 5 5 5 5 5 5 5 5 5 5 5 5 5 5 5 Final Carried 20 | 6 10 20 20 20 20 20 8 10 5 5 5 5 5 5 5 5 5 5 5 5 5 5 4 5 5 5 5 5 5 5 4 4 Class Distribution -------------------- 25% | Mutant 23% | Scavenger-Scout 18% | Scavenger-Mutant 8% | Sprinter 7% | Scout 6% | Derelict-Scout Dominant Class ---------------- Mutant | -10/Materials Mutant | -10/Mines Scavenger-Mutant | -9/Materials Scavenger-Mutant | -9/Mines Scavenger-Mutant | -9/Exiles Scavenger-Mutant | -8/Mines Sprinter | -8/Materials Sprinter | -7/Factory Hacker-Sprinter | -7/Waste Sprinter | -7/Factory Sprinter | -7/Lower Caves Sprinter | -7/Lower Caves Sprinter | -7/Zion Derelict-Sprinter | -7/Deep Caves Derelict-Scout | -6/Proximity Caves Scavenger-Scout | -6/Factory Scavenger-Scout | -6/Lower Caves Scavenger-Scout | -6/Lower Caves Scavenger-Scout | -6/Data Miner Scout | -5/Proximity Caves Scout | -5/Factory Scout | -5/Upper Caves Scout | -5/Upper Caves Scavenger-Scout | -5/Warlord Scavenger-Scout | -4/Proximity Caves Scavenger-Scout | -4/Factory Commander-Mutant | -4/Extension Scavenger-Mutant | -4/Cetus Scavenger-Mutant | -4/Archives Scavenger-Mutant | -4/Hub_04(d) Scavenger-Scout | -3/Research Sprinter | -3/Testing Resources | -11 -10 -10 -9 -9 -9 -8 -8 -7 -7 -7 -7 -7 -7 -7 -6 -6 -6 -6 -6 -5 -5 -5 -5 -5 -4 -4 -4 -4 -4 -4 -3 -3 ----------- Run | Jun Mat Min Mat Min Exi Min Mat Fac Was Fac Low Low Zio Dee Pro Fac Low Low Dat Pro Fac Upp Upp War Pro Fac Ext Cet Arc Hub Res Tes Matter Collected 4447 | 280 126 101 120 29 . 160 118 100 40 90 50 1 98 48 75 205 160 . . 58 12 . 85 463 292 353 556 295 104 . 428 . Remotely . | . . . . . . . . . . . . . . . . . . . . . . . . . . . . . . . . . Salvage Created 5586 | 116 459 345 831 . . 183 109 100 . 118 . 36 . 123 . 527 19 . . 45 28 . 128 181 112 504 639 92 397 . 494 . Parts 288 | 6 25 17 51 . . 15 5 2 . 3 . 1 . 9 . 39 1 . . 3 7 . 5 10 4 15 21 2 33 . 14 . Haulers Intercepted 9 | . 1 . 2 . . . 2 . . 1 . . . . . 1 . . . . . . . . . . . . . . 2 . Recyclers Shooed 6 | . . 2 1 . . 1 . . . . . . . . . . . . . . . . . . . . 2 . . . . . Parts Field Recycled . | . . . . . . . . . . . . . . . . . . . . . . . . . . . . . . . . . Retrieved Matter . | . . . . . . . . . . . . . . . . . . . . . . . . . . . . . . . . . Parts Self-Destructed 11 | . . . . . . . . . . . . 2 . . . . 2 . . 1 . . 2 . 4 . . . . . . . Prevented . | . . . . . . . . . . . . . . . . . . . . . . . . . . . . . . . . . Kills | -11 -10 -10 -9 -9 -9 -8 -8 -7 -7 -7 -7 -7 -7 -7 -6 -6 -6 -6 -6 -5 -5 -5 -5 -5 -4 -4 -4 -4 -4 -4 -3 -3 ------- Run | Jun Mat Min Mat Min Exi Min Mat Fac Was Fac Low Low Zio Dee Pro Fac Low Low Dat Pro Fac Upp Upp War Pro Fac Ext Cet Arc Hub Res Tes Combat Hostiles Destroyed 77 | . 9 4 14 . . 8 1 3 . 1 . 1 . 1 . 2 3 . . 7 . . 4 3 2 3 4 1 1 . 5 . Melee 13 | . . . . . . . . . . 1 . 1 . 1 . 2 . . . 1 . . . 1 . . 4 . 1 . 1 . Guns 28 | . 8 4 14 . . 2 . . . . . . . . . . . . . . . . . . . . . . . . . . Cannons 10 | . . . . . . . . . . . . . . . . . . . . . . . . 2 2 3 . 1 . . 2 . AOE 24 | . 1 . . . . 5 . 3 . . . . . . . . 3 . . 6 . . 4 . . . . . . . 2 . Classes Destroyed 19 | 2 5 . 3 . . 3 . . . . . . . . . 1 . . . 1 . . . 3 . . 1 . . . . . Worker 8 | . 1 2 2 . . . . 2 . . . . . . . . . . . . 1 . . . . . . . . . . . Builder 10 | . . . . . . 2 . . . . . . . . . 3 . . . . 1 . . . . . 2 . . . 2 . Tunneler 3 | 2 . . . . . . . . . . . . . . . . . . . . . . . . . . 1 . . . . . Hauler 9 | . 1 . 2 . . . 2 . . 1 . . . . . 1 . . . . . . . . . . . . . . 2 . Recycler 14 | 1 2 2 2 . . . . . . . . . . . . 2 . . . . . . . . . 2 2 . . . 1 . Operator 15 | . 1 . 1 . . . . 1 . 1 . . . . . . . . . . . . . . . 2 . . 9 . . . Drone 2 | . . . . . . . . . . . . . . . . . . . . 2 . . . . . . . . . . . . Watcher 6 | . . . 1 . . . . . . . . . . . . 3 . . . . . . . . . 1 . 1 . . . . Swarmer 29 | . 6 . 3 . . 3 1 3 . . . . . . . . 3 . . 5 . . 4 . . . . . . . 1 . Cutter 2 | . . . . . . . . . . . . . . . . 2 . . . . . . . . . . . . . . . . Grunt 19 | . 3 4 8 . . 2 . . . . . 1 . . . . . . . . . . . 1 . . . . . . . . Brawler 1 | . . . 1 . . . . . . . . . . . . . . . . . . . . . . . . . . . . . Duelist 1 | . . . . . . 1 . . . . . . . . . . . . . . . . . . . . . . . . . . Protector 1 | . . . . . . . . . . . . . . . . . . . . . . . . 1 . . . . . . . . Sentry 9 | . . . 2 . . . . . . . . . . . . . . . . . . . . . 1 1 3 . 1 . 1 . Hunter 4 | . . . . . . 2 . . . 1 . . . . . . . . . . . . . . . . . 1 . . . . Programmer 7 | . . . . . . . . . . . . . . . . . . . . . . . . 1 1 2 . . . . 3 . Behemoth 1 | . . . . . . . . . . . . . . . . . . . . . . . . . . . 1 . . . . . Packrat 1 | . . . . . . . . . . . . . . . . . . . . . . . 1 . . . . . . . . . Surgeon 1 | . . . . . . . . . . . . . . . . . . . . . . . . 1 . . . . . . . . Best Kill Streak 6 | 3 3 2 5 . . 4 2 4 . 2 . 1 . 1 . 4 3 . . 6 1 . 4 1 1 2 3 1 5 . 2 . Combat Bots Only 6 | . 3 2 4 . . 3 1 3 . 1 . 1 . 1 . 1 3 . . 6 . . 4 1 1 2 1 1 1 . 2 . Max Kills in Single Turn 3 | 2 2 1 1 . . 3 1 3 . 1 . 1 . 1 . 1 1 . . 2 1 . 2 1 1 1 1 1 1 . 1 . Gunslinging . | . . . . . . . . . . . . . . . . . . . . . . . . . . . . . . . . . Exploded 3 | . 1 . . . . 3 . 3 . . . . . . . . 1 . . 2 . . 2 . . . . . . . 1 . Melee 1 | . . . . . . . . . . 1 . 1 . 1 . 1 . . . 1 . . . 1 . . 1 . 1 . 1 . Uniques/NPCs Destroyed 2 | . . . . . . . . . . . . . . 1 . . . . . . . . . . . . . 1 . . . . Z-Imprinter (-7/Deep Caves) A7 (-4/Cetus) Combat | -11 -10 -10 -9 -9 -9 -8 -8 -7 -7 -7 -7 -7 -7 -7 -6 -6 -6 -6 -6 -5 -5 -5 -5 -5 -4 -4 -4 -4 -4 -4 -3 -3 -------- Run | Jun Mat Min Mat Min Exi Min Mat Fac Was Fac Low Low Zio Dee Pro Fac Low Low Dat Pro Fac Upp Upp War Pro Fac Ext Cet Arc Hub Res Tes Damage Taken 10911 | . 287 257 367 14 . 353 269 50 33 98 . . . 673 66 114 47 . . 278 . . 51 149 23 213 1274 574 27 155 3392 2147 Core 2077 | . 57 94 51 . . 63 59 34 . 42 . . . 183 23 . . . . 18 . . 12 . . . 64 72 . . 555 750 Absorbed by Shields 30 | . . . . . . . . . . . . . . . . . . . . . . . . . . . . . . . 30 . Redirected to Shielding 100 | . . . . . . . . . . . . . . . . . . . . . . . . . . . . . . . 38 62 Regen/Repaired (Parts) 39 | . . . . . . . . . . . . . . . . . . . . . . . . 39 . . . . . . . . Core Remaining (%) 80 | 100 . 39 . . . 71 89 . . . . . . . 59 . . . . 97 . . . . 98 . . . . 88 . . Volleys Fired 259 | 7 34 19 56 . . 19 1 1 . . . . . . . . 4 . . 3 . . 4 6 26 23 12 14 2 . 23 5 Largest 2 | 2 2 2 2 . . 2 1 1 . . . . . . . . 1 . . 1 . . 1 1 1 1 1 2 2 . 2 1 Hottest 130 | 80 112 112 112 . . 112 56 36 . . . . . . . . 43 . . 43 . . 43 90 90 90 90 130 130 . 130 100 Shots Fired 407 | 14 61 38 112 . . 29 1 1 . . . . . . . . 4 . . 3 . . 4 6 26 23 12 29 5 . 34 5 Gun 244 | 14 59 38 112 . . 20 1 . . . . . . . . . . . . . . . . . . . . . . . . . Cannon 133 | . . . . . . . . . . . . . . . . . . . . . . . . 6 26 23 12 29 5 . 27 5 Launcher 30 | . 2 . . . . 9 . 1 . . . . . . . . 4 . . 3 . . 4 . . . . . . . 7 . Special . | . . . . . . . . . . . . . . . . . . . . . . . . . . . . . . . . . Kinetic 132 | . . . . . . . . . . . . . . . . . . . . . . . . 6 26 23 12 29 5 . 26 5 Thermal 186 | . 15 38 112 . . 20 1 . . . . . . . . . . . . . . . . . . . . . . . . . Explosive 30 | . 2 . . . . 9 . 1 . . . . . . . . 4 . . 3 . . 4 . . . . . . . 7 . Electromagnetic 59 | 14 44 . . . . . . . . . . . . . . . . . . . . . . . . . . . . . 1 . Robot Hit Streak 12 | 5 12 5 9 . . 3 4 5 . . . . . . . . 6 . . 8 . . 1 5 4 2 2 7 3 . 5 . Robot Miss Streak 5 | 2 4 3 3 . . 3 . . . . . . . . . . . . . . . . 1 1 3 5 3 1 1 . 2 . Penetration Max . | . . . . . . . . . . . . . . . . . . . . . . . . . . . . . . . . . Secondary Targets 5 | . 3 1 1 . . . . . . . . . . . . . . . . . . . . . . . . . . . . . Max Gunslinging Chain 1 | . 1 1 1 . . . . . . . . . . . . . . . . . . . . . . . . . . . . . Shots Hit Robots 316 | 8 37 22 67 . . 13 5 4 . 5 . 1 . 7 . 17 1 . . 4 2 . 2 6 5 12 31 23 19 2 23 . Core Hits 174 | 2 20 9 26 . . 15 2 5 . 1 . 1 . 4 . 7 5 . . 8 . . 5 5 2 6 12 8 12 . 19 . Critical Kills 1 | . . . . . . . 1 . . . . . . . . . . . . . . . . . . . . . . . . . Critical Parts Destroyed 2 | . . . . . . . . 1 . 1 . . . . . . . . . . . . . . . . . . . . . . Critical Strikes 20 | . . . 4 . . 2 1 1 . 1 . . . . . . . . . . . . . . . . 3 2 1 . 5 . Burn 6 | . . . 4 . . 2 . . . . . . . . . . . . . . . . . . . . . . . . . . Blast 3 | . . . . . . . . . . . . . . . . . . . . . . . . . . . . 1 . . 2 . Smash 3 | . . . . . . . 1 1 . 1 . . . . . . . . . . . . . . . . . . . . . . Sever 7 | . . . . . . . . . . . . . . . . . . . . . . . . . . . 3 1 1 . 2 . Impale 1 | . . . . . . . . . . . . . . . . . . . . . . . . . . . . . . . 1 . Melee Attacks 298 | . . . . . . . 17 5 3 14 2 3 5 9 5 55 5 1 . 5 12 9 2 9 . 20 31 15 18 8 34 11 Impact 44 | . . . . . . . 17 5 3 14 2 3 . . . . . . . . . . . . . . . . . . . . Slashing 239 | . . . . . . . . . . . . . 5 9 5 55 5 1 . 5 12 9 2 9 . 20 31 15 18 8 19 11 Piercing 15 | . . . . . . . . . . . . . . . . . . . . . . . . . . . . . . . 15 . Sneak Attacks 41 | . . . . . . . 2 3 . 2 . . . . . 7 . . . 1 2 . 1 1 . 2 5 . 7 1 7 . Combat Hostiles 3 | . . . . . . . . . . . . . . . . . . . . 1 . . . 1 . . 1 . . . . . Follow-up Attacks 8 | . . . . . . . . . . . . . . 2 . 1 . . . 1 . . . . . . 3 . . . 1 . Damage Inflicted 16072 | 186 587 417 1153 . . 884 377 558 . 441 . 39 . 319 . 1056 331 . . 753 184 . 470 519 416 1421 1722 800 1398 156 1875 10 Guns 2402 | 113 515 417 1153 . . 188 16 . . . . . . . . . . . . . . . . . . . . . . . . . Cannons 2476 | . . . . . . . . . . . . . . . . . . . . . . . . 426 416 370 261 665 80 . 258 . Explosions 3529 | 73 72 . . . . 696 . 236 . . . . . . . . 331 . . 632 . . 382 . . 266 . . . . 841 . Melee 7593 | . . . . . . . 361 322 . 441 . 39 . 319 . 1056 . . . 121 184 . 88 93 . 785 1399 135 1318 156 776 . Ramming 72 | . . . . . . . . . . . . . . . . . . . . . . . . . . . 62 . . . . 10 Kinetic 2467 | . . . . . . . . . . . . . . . . . . . . . . . . 426 416 370 261 665 80 . 249 . Thermal 1975 | 73 128 417 1153 . . 188 16 . . . . . . . . . . . . . . . . . . . . . . . . . Explosive 3435 | . 51 . . . . 696 . 236 . . . . . . . . 331 . . 632 . . 382 . . 266 . . . . 841 . Electromagnetic 530 | 113 408 . . . . . . . . . . . . . . . . . . . . . . . . . . . . . 9 . Impact 1163 | . . . . . . . 361 322 . 441 . 39 . . . . . . . . . . . . . . . . . . . . Slashing 6270 | . . . . . . . . . . . . . . 319 . 1056 . . . 121 184 . 88 93 . 785 1399 135 1318 156 616 . Piercing 160 | . . . . . . . . . . . . . . . . . . . . . . . . . . . . . . . 160 . Highest Corruption 25 | . 1 1 . . . . . . . . . . 5 . . . . . . . . . . . . 1 5 5 5 . 16 25 Average Corruption 3 | . 1 1 . . . . . . . . . . 5 . . . . . . . . . . . . 1 3 5 4 . 10 18 Corruption Purged 5 | . . . . . . . . . . . . . . . . . . . . . . . . . . . . . 5 . . . Corruption Blocked 22 | . . . . . . . . . . . . . . . . . . . . . . . . 22 . . . . . . . . Effects 85 | . 5 10 . . . . . . . . . . 8 . . . . . . . . . . . . 2 16 10 7 . 11 16 Message Errors 16 | . 1 1 . . . . . . . . . . 3 . . . . . . . . . . . . 1 3 2 . . 4 1 Matter Fused 13 | . 2 1 . . . . . . . . . . . . . . . . . . . . . . . 1 4 2 1 . 1 1 Heat Flow Errors 13 | . . 1 . . . . . . . . . . 3 . . . . . . . . . . . . . 4 1 . . 2 2 Energy Discharges 11 | . . 2 . . . . . . . . . . 2 . . . . . . . . . . . . . 2 . 1 . 2 2 Parts Rejected 2 | . 1 . . . . . . . . . . . . . . . . . . . . . . . . . . . . . . 1 Data Loss (minor) 11 | . . 3 . . . . . . . . . . . . . . . . . . . . . . . . 1 3 2 . . 2 Data Loss (major) 7 | . . 2 . . . . . . . . . . . . . . . . . . . . . . . . 2 1 1 . . 1 Misfires 4 | . 1 . . . . . . . . . . . . . . . . . . . . . . . . . . 1 2 . . . Alerts 1 | . . . . . . . . . . . . . . . . . . . . . . . . . . . . . . . 1 . Misdirections 7 | . . . . . . . . . . . . . . . . . . . . . . . . . . . . . . . 1 6 Overload Shots . | . . . . . . . . . . . . . . . . . . . . . . . . . . . . . . . . . Overflow Damage 2488 | 10 . . . . . . 7 119 . 304 . . . 72 . 432 . . . 64 104 . 78 . 77 466 218 42 304 47 144 . Projectiles 189 | . . . . . . . . . . . . . . . . . . . . . . . . . 77 112 . . . . . . Explosions 127 | 10 . . . . . . . . . . . . . . . . . . . 7 . . . . . 61 . . . . 49 . Melee 2172 | . . . . . . . 7 119 . 304 . . . 72 . 432 . . . 57 104 . 78 . . 293 218 42 304 47 95 . Knockbacks 9 | . . . . . . . . . . . . . . . . . . . . . . . . . 2 1 4 2 . . . . Impact 1 | . . . . . . . . . . . . . . . . . . . . . . . . . . . 1 . . . . . Kinetic 7 | . . . . . . . . . . . . . . . . . . . . . . . . . 2 1 2 2 . . . . Secondary 1 | . . . . . . . . . . . . . . . . . . . . . . . . . . . 1 . . . . . Self-Inflicted Damage 287 | . . . . . . 45 . . . . . . . . . . . . . . . . 24 . . 176 31 . . . 6 5 Shots 7 | . . . . . . 2 . . . . . . . . . . . . . . . . 1 . . 3 . . . . 1 . Rammed 2 | . . . . . . . . . . . . . . . . . . . . . . . . . . . 1 . . . . 1 Targets Rammed 2 | . . . . . . . . . . . . . . . . . . . . . . . . . . . 1 . . . . 1 Kicked . | . . . . . . . . . . . . . . . . . . . . . . . . . . . . . . . . . Crushed . | . . . . . . . . . . . . . . . . . . . . . . . . . . . . . . . . . Highest Temperature 312 | 72 156 267 189 . . 75 25 30 196 265 302 294 312 15 70 26 . . . . . . . 51 40 30 284 . . 33 185 264 Average Temperature 75 | 40 43 84 39 . . 25 10 12 67 107 149 103 104 3 14 12 . . . . . . . 20 17 19 93 . . 20 27 75 Received Heat Transfer 1485 | . 60 147 120 . . 90 117 . . 9 . . . 198 18 9 . . . 36 . . . 9 . . 298 27 9 58 141 139 Effects 5 | . . . . . . . . . . . 1 1 3 . . . . . . . . . . . . . . . . . . . Energy Bleed 2 | . . . . . . . . . . . 1 . 1 . . . . . . . . . . . . . . . . . . . Interference 3 | . . . . . . . . . . . . 1 2 . . . . . . . . . . . . . . . . . . . Siege Activations . | . . . . . . . . . . . . . . . . . . . . . . . . . . . . . . . . . Robots Corrupted 1 | . 1 . . . . . . . . . . . . . . . . . . . . . . . . . . . . . . . Combat Hostiles . | . . . . . . . . . . . . . . . . . . . . . . . . . . . . . . . . . Parts Fried 6 | . 2 . . . . . 1 . . 3 . . . . . . . . . . . . . . . . . . . . . . Impact Corruptions 15 | . . . . . . . 1 5 . 8 . . . . . . . . . . . . . . . . 1 . . . . . Robots Melted 1 | . . . . . . 1 . . . . . . . . . . . . . . . . . . . . . . . . . . Combat Hostiles 1 | . . . . . . 1 . . . . . . . . . . . . . . . . . . . . . . . . . . Parts Melted 15 | . . 1 12 . . 2 . . . . . . . . . . . . . . . . . . . . . . . . . . Heat Transferred 4688 | 100 259 925 2812 . . 555 37 . . . . . . . . . . . . . . . . . . . . . . . . . Parts Sabotaged . | . . . . . . . . . . . . . . . . . . . . . . . . . . . . . . . . . Parts Stolen . | . . . . . . . . . . . . . . . . . . . . . . . . . . . . . . . . . Parts Stripped . | . . . . . . . . . . . . . . . . . . . . . . . . . . . . . . . . . Power Chain Reactions 2 | 1 1 . . . . . . . . . . . . . . . . . . . . . . . . . . . . . . . Missiles Intercepted . | . . . . . . . . . . . . . . . . . . . . . . . . . . . . . . . . . Alert | -11 -10 -10 -9 -9 -9 -8 -8 -7 -7 -7 -7 -7 -7 -7 -6 -6 -6 -6 -6 -5 -5 -5 -5 -5 -4 -4 -4 -4 -4 -4 -3 -3 ------- Run | Jun Mat Min Mat Min Exi Min Mat Fac Was Fac Low Low Zio Dee Pro Fac Low Low Dat Pro Fac Upp Upp War Pro Fac Ext Cet Arc Hub Res Tes Peak Influence 1140 | 15 175 95 404 115 . 264 364 298 135 546 . . . . . 404 . . . . 212 . . . . 347 1014 1140 748 362 614 412 Initial 567 | . 9 24 1 115 . . . 165 104 67 . . . . . 72 . . . . 126 . . . . 31 81 567 456 261 189 202 Average 201 | 6 85 20 152 115 . 119 127 248 107 283 . . . . . 202 . . . . 160 . . . . 140 547 805 670 288 383 178 Maximum Alert Level 4 | . . . 2 . . 1 1 1 . 2 . . . . . 2 . . . . 1 . . . . 1 3 4 3 1 2 2 Low Security (%) 68 | 100 100 100 71 100 . 75 64 26 100 38 . . . . . 56 . . . . 66 . . . . 95 24 . . . 8 57 Level 1 17 | . . . 28 . . 24 35 73 . 30 . . . . . 41 . . . . 33 . . . . 4 8 . . 100 48 41 Level 2 7 | . . . . . . . . . . 30 . . . . . 1 . . . . . . . . . . 33 23 45 . 42 . Level 3 6 | . . . . . . . . . . . . . . . . . . . . . . . . . . . 32 65 54 . . . Level 4 . | . . . . . . . . . . . . . . . . . . . . . . . . . . . . 10 . . . . Level 5 . | . . . . . . . . . . . . . . . . . . . . . . . . . . . . . . . . . High Security . | . . . . . . . . . . . . . . . . . . . . . . . . . . . . . . . . . Max Security . | . . . . . . . . . . . . . . . . . . . . . . . . . . . . . . . . . Squads Dispatched 37 | . 2 1 3 . . 1 1 1 . 2 . . . . 1 6 . . . . 1 . . . . 5 2 1 . 1 4 5 Investigation 10 | . 2 . . . . . 1 . . 2 . . . . . 2 . . . . . . . . . 1 . 1 . . 1 . Extermination 4 | . . . . . . . . . . . . . . . . 1 . . . . 1 . . . . 1 . . . . 1 . Reinforcement 21 | . . . 3 . . 1 . 1 . . . . . . . 3 . . . . . . . . . 3 2 . . 1 2 5 Assault 2 | . . 1 . . . . . . . . . . . . 1 . . . . . . . . . . . . . . . . . Garrison . | . . . . . . . . . . . . . . . . . . . . . . . . . . . . . . . . . Intercept . | . . . . . . . . . . . . . . . . . . . . . . . . . . . . . . . . . Searches Triggered 2 | . . . . . . . . . . . . . . . . 1 . . . . . . . . . . . . . . 1 . Data Miner Redirects 1 | . . . . . . . . . . . . . . . . . . . . . . . . . . 1 . . . . . . Construction Impeded 3 | . . . . . . 1 . . . . . . . . . . . . . . . . . . . 1 . . . . . 1 Haulers Reinforced 1 | . . . . . . . . . . . . . . . . 1 . . . . . . . . . . . . . . . . Active Scanning Responses . | . . . . . . . . . . . . . . . . . . . . . . . . . . . . . . . . . Cargo Convoy Interrupts . | . . . . . . . . . . . . . . . . . . . . . . . . . . . . . . . . . Stealth | -11 -10 -10 -9 -9 -9 -8 -8 -7 -7 -7 -7 -7 -7 -7 -6 -6 -6 -6 -6 -5 -5 -5 -5 -5 -4 -4 -4 -4 -4 -4 -3 -3 --------- Run | Jun Mat Min Mat Min Exi Min Mat Fac Was Fac Low Low Zio Dee Pro Fac Low Low Dat Pro Fac Upp Upp War Pro Fac Ext Cet Arc Hub Res Tes Distress Signals 21 | . . . 5 . . . 1 1 . . . . . . . 3 . . . . . . . 1 . . 2 1 . 1 4 2 Communications Jammed . | . . . . . . . . . . . . . . . . . . . . . . . . . . . . . . . . . Distress Signals . | . . . . . . . . . . . . . . . . . . . . . . . . . . . . . . . . . Times Spotted 392 | . 17 9 27 . . 8 24 6 8 7 3 3 . 10 12 21 8 . . 14 . . 2 54 4 7 25 15 13 10 42 43 Peak Tracking Total 23 | . 3 3 5 . . 3 14 5 5 3 3 4 . 8 9 5 4 . . 5 1 . 2 13 3 3 5 5 1 7 13 23 Tactical Retreats 48 | . . . 2 . . . 4 . 1 1 2 1 . 2 7 6 2 . . 2 . . . 3 . . 2 1 . 1 7 4 Traps | -11 -10 -10 -9 -9 -9 -8 -8 -7 -7 -7 -7 -7 -7 -7 -6 -6 -6 -6 -6 -5 -5 -5 -5 -5 -4 -4 -4 -4 -4 -4 -3 -3 ------- Run | Jun Mat Min Mat Min Exi Min Mat Fac Was Fac Low Low Zio Dee Pro Fac Low Low Dat Pro Fac Upp Upp War Pro Fac Ext Cet Arc Hub Res Tes Traps Triggered 12 | . 2 . 1 . . . 1 1 . . . . . . . 1 . . . . . . . . . . 2 . . . 3 1 Indirectly . | . . . . . . . . . . . . . . . . . . . . . . . . . . . . . . . . . Trap Hack Attempts . | . . . . . . . . . . . . . . . . . . . . . . . . . . . . . . . . . Triggered . | . . . . . . . . . . . . . . . . . . . . . . . . . . . . . . . . . Disarmed . | . . . . . . . . . . . . . . . . . . . . . . . . . . . . . . . . . Reprogrammed . | . . . . . . . . . . . . . . . . . . . . . . . . . . . . . . . . . Reused 5 | . . . . . . . 4 . . . . . . . 1 . . . . . . . . . . . . . . . . . Traps Extracted . | . . . . . . . . . . . . . . . . . . . . . . . . . . . . . . . . . Installed 6 | . . . . . . . 4 . . . . . . . 2 . . . . . . . . . . . . . . . . . Triggered 28 | . . . . . . . 4 . . . . . . . 1 . . . . . . 1 2 20 . . . . . . . . Most Traps Carried 4 | . . 4 4 4 4 4 4 . . . . . . . . . . . . . . . . . . . . . . . . . Machines | -11 -10 -10 -9 -9 -9 -8 -8 -7 -7 -7 -7 -7 -7 -7 -6 -6 -6 -6 -6 -5 -5 -5 -5 -5 -4 -4 -4 -4 -4 -4 -3 -3 ---------- Run | Jun Mat Min Mat Min Exi Min Mat Fac Was Fac Low Low Zio Dee Pro Fac Low Low Dat Pro Fac Upp Upp War Pro Fac Ext Cet Arc Hub Res Tes Machines Disabled 28 | . 3 . . . . 3 . . . 2 . . . . . . . 1 . . . . . . . 4 3 5 3 . 2 2 Max in Single Turn 4 | . 1 . . . . 2 . . . . . . . . . . . 1 . . . . . . . 4 . . 1 . 1 1 Garrison Access 3 | . . . . . . . . . . 1 . . . . . 2 . . . . . . . . . . . . . . . . Energy Cycler 1 | . . . . . . . . . . . . . . . . . . . . . . . . . . . 1 . . . . . Machines Repaired . | . . . . . . . . . . . . . . . . . . . . . . . . . . . . . . . . . Machines Sabotaged . | . . . . . . . . . . . . . . . . . . . . . . . . . . . . . . . . . Overloaded Fab Kills . | . . . . . . . . . . . . . . . . . . . . . . . . . . . . . . . . . Hacking | -11 -10 -10 -9 -9 -9 -8 -8 -7 -7 -7 -7 -7 -7 -7 -6 -6 -6 -6 -6 -5 -5 -5 -5 -5 -4 -4 -4 -4 -4 -4 -3 -3 --------- Run | Jun Mat Min Mat Min Exi Min Mat Fac Was Fac Low Low Zio Dee Pro Fac Low Low Dat Pro Fac Upp Upp War Pro Fac Ext Cet Arc Hub Res Tes Machines Accessed 59 | . 5 . 1 1 1 . 2 . . 6 1 . . . . 12 . . 3 . 2 . . 1 . 6 6 2 1 4 2 3 Terminals 41 | . 5 . 1 . . . 2 . . 3 . . . . . 7 . . . . 2 . . . . 4 6 2 . 4 2 3 Fabricators 4 | . . . . . . . . . . 1 . . . . . 2 . . . . . . . . . 1 . . . . . . Repair Stations . | . . . . . . . . . . . . . . . . . . . . . . . . . . . . . . . . . Recycling Units 1 | . . . . . . . . . . . . . . . . . . . . . . . . . . 1 . . . . . . Scanalyzers . | . . . . . . . . . . . . . . . . . . . . . . . . . . . . . . . . . Garrison Access 5 | . . . . . . . . . . 2 . . . . . 3 . . . . . . . . . . . . . . . . Total Hacks 133 | . 13 . 2 1 1 . 4 . . 11 1 . . . . 20 . . 23 . 3 . . 1 . 14 8 6 1 15 3 6 Successful 68 | . 3 . 1 1 1 . 1 . . 5 1 . . . . 8 . . 23 . 2 . . 1 . 3 5 3 1 7 1 1 Failed 65 | . 10 . 1 . . . 3 . . 6 . . . . . 12 . . . . 1 . . . . 11 3 3 . 8 2 5 Catastrophic 18 | . 2 . 1 . . . 2 . . 1 . . . . . 6 . . . . . . . . . 1 1 . . 1 1 2 Database Lockouts . | . . . . . . . . . . . . . . . . . . . . . . . . . . . . . . . . . Manual 39 | . 8 . . . . . . . . 3 . . . . . 5 . . . . 1 . . 1 . 1 2 2 . 11 2 3 Terminals 87 | . 13 . 2 . . . 4 . . 6 . . . . . 11 . . . . 3 . . . . 10 8 6 . 15 3 6 Fabricators 10 | . . . . . . . . . . 2 . . . . . 6 . . . . . . . . . 2 . . . . . . Repair Stations . | . . . . . . . . . . . . . . . . . . . . . . . . . . . . . . . . . Recycling Units 2 | . . . . . . . . . . . . . . . . . . . . . . . . . . 2 . . . . . . Scanalyzers . | . . . . . . . . . . . . . . . . . . . . . . . . . . . . . . . . . Garrison Access 6 | . . . . . . . . . . 3 . . . . . 3 . . . . . . . . . . . . . . . . Terminal Hacks 52 | . 3 . 1 1 1 . 1 . . 2 1 . . . . 3 . . 23 . 1 . . 1 . 1 4 3 1 3 1 1 Record 11 | . . . . . 1 . . . . . . . . . . . . . 6 . . . . . . . . 3 1 . . . Part Schematic 10 | . . . . . . . . . . . . . . . . 1 . . 9 . . . . . . . . . . . . . Robot Schematic 5 | . . . . . . . . . . . . . . . . . . . 5 . . . . . . . . . . . . . Robot Analysis 1 | . 1 . . . . . . . . . . . . . . . . . . . . . . . . . . . . . . . Prototype ID Bank 6 | . 1 . . . . . . . . . . . . . . 1 . . 3 . . . . . . . 1 . . . . . Open Door 4 | . . . . 1 . . . . . . 1 . . . . . . . . . . . . 1 . . 1 . . . . . Level Access Points 1 | . . . . . . . . . . 1 . . . . . . . . . . . . . . . . . . . . . . Branch Access Points 4 | . . . . . . . . . . 1 . . . . . . . . . . 1 . . . . . 1 . . . 1 . Machine Index 1 | . . . . . . . . . . . . . . . . . . . . . . . . . . 1 . . . . . . Unreport Threat 1 | . . . . . . . . . . . . . . . . . . . . . . . . . . . . . . . . 1 Recall Extermination 1 | . . . . . . . . . . . . . . . . 1 . . . . . . . . . . . . . . . . Hauler Manifests 1 | . . . . . . . 1 . . . . . . . . . . . . . . . . . . . . . . . . . Registered Prototypes 1 | . . . 1 . . . . . . . . . . . . . . . . . . . . . . . . . . . . . Zone Layout 5 | . 1 . . . . . . . . . . . . . . . . . . . . . . . . . 1 . . 3 . . Fabricator Hacks 5 | . . . . . . . . . . 1 . . . . . 3 . . . . . . . . . 1 . . . . . . Network Status 3 | . . . . . . . . . . 1 . . . . . 1 . . . . . . . . . 1 . . . . . . Load Schematic 1 | . . . . . . . . . . . . . . . . 1 . . . . . . . . . . . . . . . . Build 1 | . . . . . . . . . . . . . . . . 1 . . . . . . . . . . . . . . . . Repair Station Hacks . | . . . . . . . . . . . . . . . . . . . . . . . . . . . . . . . . . Recycling Unit Hacks . | . . . . . . . . . . . . . . . . . . . . . . . . . . . . . . . . . Scanalyzer . | . . . . . . . . . . . . . . . . . . . . . . . . . . . . . . . . . Garrison Access Hacks 3 | . . . . . . . . . . 1 . . . . . 2 . . . . . . . . . . . . . . . . Seal Access 3 | . . . . . . . . . . 1 . . . . . 2 . . . . . . . . . . . . . . . . Unauthorized Hacks 8 | . . . . . . . . . . 1 . . . . . . . . . . 1 . . . . 1 1 . . 4 . . Terminals 6 | . . . . . . . . . . . . . . . . . . . . . 1 . . . . . 1 . . 4 . . Track 3 | . . . . . . . . . . . . . . . . . . . . . . . . . . . . . . 3 . . Assimilate 1 | . . . . . . . . . . . . . . . . . . . . . . . . . . . 1 . . . . . Botnet 2 | . . . . . . . . . . . . . . . . . . . . . 1 . . . . . . . . 1 . . Fabricators 2 | . . . . . . . . . . 1 . . . . . . . . . . . . . . . 1 . . . . . . Liberate 2 | . . . . . . . . . . 1 . . . . . . . . . . . . . . . 1 . . . . . . Repair Stations . | . . . . . . . . . . . . . . . . . . . . . . . . . . . . . . . . . Recycling Units . | . . . . . . . . . . . . . . . . . . . . . . . . . . . . . . . . . Scanalyzers . | . . . . . . . . . . . . . . . . . . . . . . . . . . . . . . . . . Garrison Access . | . . . . . . . . . . . . . . . . . . . . . . . . . . . . . . . . . Data Cores Recovered 3 | . 1 . . . . . . . . 1 . . . . . . . . . . . . . . . 1 . . . . . . Used 1 | . . . . . . . . . . . . . . . . . . . . . . . . . . 1 . . . . . . Hacking Detections 40 | . 5 . 1 . . . 2 . . 4 . . . . . 10 . . . . 2 . . . . 4 4 3 . 2 1 2 Full Trace Events 7 | . 1 . . . . . . . . 2 . . . . . 2 . . . . . . . . . 1 . 1 . . . . Feedback Events 2 | . 1 . . . . . . . . . . . . . . . . . . . . . . . . 1 . . . . . . Corruption 2 | . 1 . . . . . . . . . . . . . . . . . . . . . . . . 1 . . . . . . Feedback Blocked . | . . . . . . . . . . . . . . . . . . . . . . . . . . . . . . . . . Robot Schematics Acquired 5 | . . . . . . . . . . . . . . . . . . . 5 . . . . . . . . . . . . . Robots Built . | . . . . . . . . . . . . . . . . . . . . . . . . . . . . . . . . . Authchips . | . . . . . . . . . . . . . . . . . . . . . . . . . . . . . . . . . Time . | . . . . . . . . . . . . . . . . . . . . . . . . . . . . . . . . . Total Robot Build Rating . | . . . . . . . . . . . . . . . . . . . . . . . . . . . . . . . . . Part Schematics Acquired 10 | . . . . . . . . . . . . . . . . 1 . . 9 . . . . . . . . . . . . . Parts Built 1 | . . . . . . . . . . . . . . . . 1 . . . . . . . . . . . . . . . . Authchips . | . . . . . . . . . . . . . . . . . . . . . . . . . . . . . . . . . Time 53 | . . . . . . . . . . . . . . . . 53 . . . . . . . . . . . . . . . . Total Part Build Rating 6 | . . . . . . . . . . . . . . . . 6 . . . . . . . . . . . . . . . . Parts Repaired . | . . . . . . . . . . . . . . . . . . . . . . . . . . . . . . . . . Time . | . . . . . . . . . . . . . . . . . . . . . . . . . . . . . . . . . Parts Recycled . | . . . . . . . . . . . . . . . . . . . . . . . . . . . . . . . . . Recycled Matter . | . . . . . . . . . . . . . . . . . . . . . . . . . . . . . . . . . Retrieved Matter . | . . . . . . . . . . . . . . . . . . . . . . . . . . . . . . . . . Retrieved Components . | . . . . . . . . . . . . . . . . . . . . . . . . . . . . . . . . . Parts Scanalyzed . | . . . . . . . . . . . . . . . . . . . . . . . . . . . . . . . . . Part Schematics Acquired . | . . . . . . . . . . . . . . . . . . . . . . . . . . . . . . . . . Parts Damaged . | . . . . . . . . . . . . . . . . . . . . . . . . . . . . . . . . . Bothacking | -11 -10 -10 -9 -9 -9 -8 -8 -7 -7 -7 -7 -7 -7 -7 -6 -6 -6 -6 -6 -5 -5 -5 -5 -5 -4 -4 -4 -4 -4 -4 -3 -3 ------------ Run | Jun Mat Min Mat Min Exi Min Mat Fac Was Fac Low Low Zio Dee Pro Fac Low Low Dat Pro Fac Upp Upp War Pro Fac Ext Cet Arc Hub Res Tes Used RIF Installer . | . . . . . . . . . . . . . . . . . . . . . . . . . . . . . . . . . Robots Hacked . | . . . . . . . . . . . . . . . . . . . . . . . . . . . . . . . . . Non-combat . | . . . . . . . . . . . . . . . . . . . . . . . . . . . . . . . . . Combat . | . . . . . . . . . . . . . . . . . . . . . . . . . . . . . . . . . Robot Hacks Applied . | . . . . . . . . . . . . . . . . . . . . . . . . . . . . . . . . . Relay Couplers Released . | . . . . . . . . . . . . . . . . . . . . . . . . . . . . . . . . . Fabnet Peak Effective % . | . . . . . . . . . . . . . . . . . . . . . . . . . . . . . . . . . Robots Rewired 18 | . . . . . . . . . . . . . . . . . . . . . . . . 5 . . 13 . . . . . Allies Hacked 3 | . . . . . . . . . . 1 . . . . . . . . . . . . . . . 2 . . . . . . Hacks Repelled . | . . . . . . . . . . . . . . . . . . . . . . . . . . . . . . . . . Allies | -11 -10 -10 -9 -9 -9 -8 -8 -7 -7 -7 -7 -7 -7 -7 -6 -6 -6 -6 -6 -5 -5 -5 -5 -5 -4 -4 -4 -4 -4 -4 -3 -3 -------- Run | Jun Mat Min Mat Min Exi Min Mat Fac Was Fac Low Low Zio Dee Pro Fac Low Low Dat Pro Fac Upp Upp War Pro Fac Ext Cet Arc Hub Res Tes Total Allies 56 | . . 1 . . . . . . 19 . . . 2 . . . . . . 1 . . . 5 . 2 21 5 . . . . Largest Group 19 | . . 1 1 . . . . . 19 13 . . 2 2 . . . . . 1 . . . 5 . 2 16 13 3 3 . . Highest-Rated Group 784 | . . 31 31 . . . . . 475 348 . . 45 45 . . . . . 96 . . . 260 . 98 784 667 243 243 . . Highest-Rated Ally 159 | . . 31 31 . . . . . 35 35 . . 25 25 . . . . . 96 . . . 65 . 49 159 153 96 96 . . Total Orders 1 | . . . . . . . . . . . . . . . . . . . . . . . . 1 . . . . . . . . AID 1 | . . . . . . . . . . . . . . . . . . . . . . . . 1 . . . . . . . . Ally Attacks 529 | . . 5 13 . . . . . 95 94 . . . 7 . . . . . 10 . . . 44 . 6 136 105 13 1 . . Total Damage 16149 | . . 105 191 . . . . . 3209 1716 . . . 130 . . . . . 281 . . . 1867 . 249 4398 3511 445 47 . . Kills 89 | . . 2 2 . . . . . 9 15 . . . 1 . . . . . 2 . . . 10 . . 24 21 3 . . . Allies Corrupted 1 | . . . . . . . . . . . . . . . . . . . . . . . . 1 . . . . . . . . Allies Melted 2 | . . . . . . . . . . . . . . . . . . . . . . . . 2 . . . . . . . . Intel | -11 -10 -10 -9 -9 -9 -8 -8 -7 -7 -7 -7 -7 -7 -7 -6 -6 -6 -6 -6 -5 -5 -5 -5 -5 -4 -4 -4 -4 -4 -4 -3 -3 ------- Run | Jun Mat Min Mat Min Exi Min Mat Fac Was Fac Low Low Zio Dee Pro Fac Low Low Dat Pro Fac Upp Upp War Pro Fac Ext Cet Arc Hub Res Tes Robot Analysis Total 1 | . 1 . . . . . . . . . . . . . . . . . . . . . . . . . . . . . . . Derelict Logs Recovered 15 | . . 1 . 1 . . . . . . 1 1 2 . 2 . 2 1 . 1 . 2 . . 1 . . . . . . . Drone Launches . | . . . . . . . . . . . . . . . . . . . . . . . . . . . . . . . . . Drone Recoveries . | . . . . . . . . . . . . . . . . . . . . . . . . . . . . . . . . . Exploration | -11 -10 -10 -9 -9 -9 -8 -8 -7 -7 -7 -7 -7 -7 -7 -6 -6 -6 -6 -6 -5 -5 -5 -5 -5 -4 -4 -4 -4 -4 -4 -3 -3 ------------- Run | Jun Mat Min Mat Min Exi Min Mat Fac Was Fac Low Low Zio Dee Pro Fac Low Low Dat Pro Fac Upp Upp War Pro Fac Ext Cet Arc Hub Res Tes Turns Passed 15649 | 121 1103 1802 1229 372 231 800 273 78 287 223 293 135 784 155 1151 729 319 57 20 243 272 197 246 1011 749 468 647 373 311 107 555 308 Spaces Moved 17730 | 54 464 701 576 220 145 469 513 179 432 662 587 347 1243 526 654 1780 674 225 82 636 205 449 274 1325 678 724 778 413 277 215 631 592 Core 67 | 6 . . . . . . . 1 . . . . . . . . . . . . . . . . . . . . . . . 60 Treads 2623 | 48 464 701 576 220 145 469 . . . . . . . . . . . . . . . . . . . . . . . . . . Legs . | . . . . . . . . . . . . . . . . . . . . . . . . . . . . . . . . . Wheels . | . . . . . . . . . . . . . . . . . . . . . . . . . . . . . . . . . Hover 4749 | . . . . . . . . . . . . . . . . . . . . . . . . 926 678 724 778 413 277 215 631 107 Flight 10291 | . . . . . . . 513 178 432 662 587 347 1243 526 654 1780 674 225 82 636 205 449 274 399 . . . . . . . 425 Fastest Speed 11 | 50 160 240 160 160 160 155 28 24 24 21 21 21 21 21 20 17 17 24 24 24 24 24 11 17 36 32 32 36 36 35 33 28 Average Speed 52 | 154 187 240 168 160 160 159 28 26 24 21 21 21 30 23 24 20 23 24 24 24 24 24 23 35 36 34 33 36 36 35 37 39 Slowest Speed 450 | 160 240 240 240 160 160 320 28 450 27 24 21 21 90 24 27 34 24 24 24 24 24 24 24 100 36 36 38 36 36 40 61 131 Overloaded Moves 50 | . . . . . . . . . . . . . . . 23 21 . . . . . . 6 . . . . . . . . . Propulsion Burnouts . | . . . . . . . . . . . . . . . . . . . . . . . . . . . . . . . . . Robots Hopped 28 | . . . . . . . 11 2 1 4 . . . . . . . . . . . . . 1 . . . . . . . 9 Cave-ins Triggered . | . . . . . . . . . . . . . . . . . . . . . . . . . . . . . . . . . Exploration Rate (%) 59 | 3 75 98 51 32 52 98 44 5 96 20 60 53 84 75 81 57 70 51 75 71 6 63 47 94 76 19 80 78 99 33 31 73 Regions Visited 32 Branch Regions 22 Pre-discovered Areas 6 | . . . . . 1 . . . . . . 1 1 . 1 . . . 1 . . 1 . . . . . . . . . . Known Exits Taken 20 | . . . . . . . . . . 1 1 1 . . 1 1 1 1 1 1 1 1 1 1 1 1 1 1 1 1 1 . Unknown Exits Taken 10 | 1 1 1 1 1 1 1 1 . . . . . 1 1 . . . . . . . . . . . . . . . . . . Scrap Searched 30 | . . 2 . 2 . 3 . . . . 1 2 3 . 4 . 5 . . 3 . 1 2 . 2 . . . . . . . Spaces Dug 187 | . 5 . . . . 12 10 1 3 5 2 2 2 1 4 27 29 . . 13 8 6 1 4 8 14 . . . 6 18 6 Terrain Destroyed 516 | 3 25 . . . . 75 10 3 3 5 2 2 2 1 4 27 47 . . 31 8 6 40 4 21 75 5 6 1 6 94 10 Melee 118 | . . . . . . . 10 1 3 5 2 2 2 1 4 27 4 . . 2 8 6 1 4 . 11 . . . 6 14 5 Projectile 74 | . . . . . . . . . . . . . . . . . . . . . . . . . 21 18 5 6 1 . 18 5 AOE 324 | 3 25 . . . . 75 . 2 . . . . . . . . 43 . . 29 . . 39 . . 46 . . . . 62 . Terrain Rammed . | . . . . . . . . . . . . . . . . . . . . . . . . . . . . . . . . . Walls Destroyed . | . . . . . . . . . . . . . . . . . . . . . . . . . . . . . . . . . Machines Disabled . | . . . . . . . . . . . . . . . . . . . . . . . . . . . . . . . . . Actions | -11 -10 -10 -9 -9 -9 -8 -8 -7 -7 -7 -7 -7 -7 -7 -6 -6 -6 -6 -6 -5 -5 -5 -5 -5 -4 -4 -4 -4 -4 -4 -3 -3 --------- Run | Jun Mat Min Mat Min Exi Min Mat Fac Was Fac Low Low Zio Dee Pro Fac Low Low Dat Pro Fac Upp Upp War Pro Fac Ext Cet Arc Hub Res Tes Total 23253 | 74 640 784 722 241 144 493 609 202 611 722 751 403 1640 546 1634 2053 822 225 81 713 406 524 445 1852 1155 887 1105 590 458 233 850 638 Wait 4338 | . 111 47 55 14 . . 43 . 161 28 157 54 368 . 964 160 134 . . 69 191 70 163 376 451 112 181 135 150 7 134 3 Move 17648 | 53 463 700 575 219 144 468 494 175 429 653 586 346 1242 525 653 1779 673 224 81 635 204 448 273 1322 677 723 777 412 276 214 630 575 Hop 23 | . . . . . . . 7 2 1 4 . . . . . . . . . . . . . 1 . . . . . . . 8 Pick Up 74 | 6 8 10 10 1 . . 6 2 5 2 1 . 2 5 1 3 . . . . . . . 4 . 2 2 . 1 . 3 . Fast Attach 134 | 7 6 . 5 2 . . 3 2 4 6 2 . 10 2 2 14 . . . . 1 . . 24 . . 8 . 5 1 11 19 Attach 36 | . 1 . . . . . 9 1 1 . 1 . . . . 2 . . . . . . 1 3 . 2 3 . . . 7 5 Detach 32 | . 2 . . . . . 2 1 . 2 1 . 6 1 . 2 . . . . . . . 6 . . 1 . . . 2 6 Swap 96 | 1 6 5 7 2 . 5 5 2 . 4 1 . 2 2 6 8 7 . . 2 . . 2 9 1 3 4 7 . 1 3 1 Drop 159 | . 9 3 14 3 . 1 18 . 7 10 . . 6 5 2 16 . . . . . . . 33 . 2 3 7 6 2 4 8 Fire 259 | 7 34 19 56 . . 19 1 1 . . . . . . . . 4 . . 3 . . 4 6 26 23 12 14 2 . 23 5 Melee 270 | . . . . . . . 17 5 3 13 2 3 4 6 4 51 4 1 . 4 10 6 2 7 . 20 27 15 18 8 33 7 Ram 2 | . . . . . . . . . . . . . . . . . . . . . . . . . . . 1 . . . . 1 Kick . | . . . . . . . . . . . . . . . . . . . . . . . . . . . . . . . . . Crush . | . . . . . . . . . . . . . . . . . . . . . . . . . . . . . . . . . Escape Stasis 31 | . . . . . . . . . . . . . . . . 18 . . . . . . . . . . 13 . . . . . Rewire 145 | . . . . . . . . 11 . . . . . . . . . . . . . . . 61 . . 73 . . . . . Trap 6 | . . . . . . . 4 . . . . . . . 2 . . . . . . . . . . . . . . . . . Miscellaneous . | . . . . . . . . . . . . . . . . . . . . . . . . . . . . . . . . . Route ------- -11/Junkyard -10/Materials (discovered 4 exits: *Mat x3 / [*Min]) -10/Mines (discovered 2 exits: *Mat x2) -9/Materials (discovered 2 exits: *Mat / *Min) -9/Mines (discovered 2 exits: *Mat / *Exi) -9/Exiles -8/Mines (discovered 2 exits: *Mat x2) -8/Materials -7/Factory -7/Waste -7/Factory (discovered 8 exits: Fac x4 / Sto x2 / *Low x2) -7/Lower Caves -7/Lower Caves -7/Zion (discovered 2 exits: [*Dee] / *Pro) -7/Deep Caves -6/Proximity Caves -6/Factory (discovered 4 exits: *Fac x2 / *Low x2) -6/Lower Caves -6/Lower Caves -6/Data Miner -5/Proximity Caves -5/Factory (discovered 3 exits: Fac / *Upp x2) -5/Upper Caves -5/Upper Caves -5/Warlord -4/Proximity Caves -4/Factory (discovered 2 exits: *Upp / *Ext) -4/Extension (discovered 2 exits: *Res / *Cet) -4/Cetus (discovered 3 exits: *Res x2 / *Arc) -4/Archives (discovered 3 exits: *Res / *Hub x2) -4/Hub_04(d) (discovered 2 exits: *Res x2) -3/Research (discovered 3 exits: *Res / *Tes x2) -3/Testing History --------- Turn | Location | Event 12 | -11/Junkyard | Discovered new exit (range 15) 122 | -11/Junkyard | Entered Materials 193 | -10/Materials | Discovered new exit (range 6) 328 | -10/Materials | Build established: Mutant 534 | -10/Materials | Discovered new exit (range 3) 741 | -10/Materials | Discovered new exit (range 5) 800 | -10/Materials | Discovered new exit (range 16) 1225 | -10/Materials | Entered Mines 1244 | -10/Mines | Found a hidden stash of uninstalled traps 1404 | -10/Mines | Found a damaged Exp. Sensor Array with a note attached 1409 | -10/Mines | Found Prototype Device 1542 | -10/Mines | Joined a pair of Derelicts in attacking an 0b10 outpost 2032 | -10/Mines | Discovered new exit (range 12) 2136 | -10/Mines | Received a Rocket Launcher from a helpful Derelict 2210 | -10/Mines | Learned 2 Materials zone layouts 2211 | -10/Mines | Met a Derelict testing a Signal Generator 2268 | -10/Mines | Core integrity fell below 50% 2386 | -10/Mines | Discovered new exit (range 5) 3027 | -10/Mines | Entered Materials 3027 | -9/Materials | Accompanied by 1 ally 3027 | -9/Materials | Evolved 2 slots: Propulsion x1, Utility x1 3610 | -9/Materials | Discovered new exit (range 15) 4137 | -9/Materials | Build established: Scavenger-Mutant 4153 | -9/Materials | Discovered new exit (range 7) 4256 | -9/Materials | Entered Mines 4291 | -9/Mines | Met a Derelict who couldn't figure out how to use a Trap Extractor 4381 | -9/Mines | Deemed a non-threat by the Exiles lab entrance 4381 | -9/Mines | Discovered new exit (range 5) 4404 | -9/Mines | Learned Materials stockpile data 4495 | -9/Mines | Discovered new exit (range 6) 4496 | -9/Mines | Assembled infested the area 4628 | -9/Mines | Entered Exiles 4668 | -9/Exiles | Met 8R-AWN 4694 | -9/Exiles | Met EX-HEX 4764 | -9/Exiles | Met EX-DEC 4776 | -9/Exiles | Learned location of Zion (-7) 4838 | -9/Exiles | Discovered new exit (range 14) 4859 | -9/Exiles | Entered Mines 5310 | -8/Mines | Discovered new exit (range 9) 5606 | -8/Mines | Discovered new exit (range 15) 5659 | -8/Mines | Entered Materials 5659 | -8/Materials | Evolved 2 slots: Propulsion x2 5928 | -8/Materials | Discovered new exit (range 16) 5932 | -8/Materials | Entered Factory 5932 | -7/Factory | Evolved 2 slots: Power x1, Propulsion x1 6010 | -7/Factory | Sucked down chute 6010 | -7/Factory | Entered Waste 6012 | -7/Waste | Spotted C-40 Crusher 6016 | -7/Waste | Spotted C-40 Crusher 6016 | -7/Waste | Spotted C-40 Crusher 6016 | -7/Waste | Spotted C-40 Crusher 6033 | -7/Waste | Crushed by Compactor (1 part destroyed, 1 dropped) 6050 | -7/Waste | Spotted C-40 Crusher 6073 | -7/Waste | Warlord forces began an assault 6109 | -7/Waste | Allies destroyed C-40 Crusher 6114 | -7/Waste | Allies destroyed C-40 Crusher 6115 | -7/Waste | Allies destroyed C-40 Crusher 6119 | -7/Waste | Allies destroyed C-40 Crusher 6122 | -7/Waste | Spotted C-40 Crusher 6130 | -7/Waste | Allies destroyed C-40 Crusher 6235 | -7/Waste | Discovered new exit (range 12) 6297 | -7/Waste | Entered Factory 6297 | -7/Factory | Accompanied by 13 allies 6377 | -7/Factory | Identified exit to Storage 6377 | -7/Factory | Identified exit to Lower Caves 6377 | -7/Factory | Identified exit to Factory 6520 | -7/Factory | Entered Lower Caves 6520 | -7/Lower Caves | Identified Exp. Sensor Array 6541 | -7/Lower Caves | Learned Factory emergency access door positions 6572 | -7/Lower Caves | Found Alien Artifact 6572 | -7/Lower Caves | Identified Core Expander 6572 | -7/Lower Caves | Installed Core Expander, added new Propulsion slot 6652 | -7/Lower Caves | Build established: Sprinter 6774 | -7/Lower Caves | Discovered new exit (range 11) 6776 | -7/Lower Caves | Identified exit to Lower Caves 6813 | -7/Lower Caves | Entered another Lower Caves area 6869 | -7/Lower Caves | Encountered a Warlord checkpoint 6936 | -7/Lower Caves | Discovered new exit (range 15) 6948 | -7/Lower Caves | Identified exit to Zion 6948 | -7/Lower Caves | Entered Zion 7010 | -7/Zion | Given A8's code to call for help 7017 | -7/Zion | Discovered new exit (range 10) 7019 | -7/Zion | Identified exit to Proximity Caves 7103 | -7/Zion | Gained Derelict followers 7128 | -7/Zion | Visited the Megawrench Repair Shop 7170 | -7/Zion | Given the Hacking Drone Bay 7171 | -7/Zion | Found Prototype Device 7193 | -7/Zion | Found Prototype Processor 7193 | -7/Zion | Identified Exp. Targeting Computer 7195 | -7/Zion | Found Prototype Processor 7195 | -7/Zion | Identified Exp. Target Analyzer 7198 | -7/Zion | Found Prototype Processor 7198 | -7/Zion | Identified Exp. Core Analyzer 7217 | -7/Zion | Learned Factory emergency access door positions 7298 | -7/Zion | Learned location of Warlord (-5) 7420 | -7/Zion | Received a hallucinogenic algorithm 7472 | -7/Zion | System corruption cleaned by Quarantine Array 7529 | -7/Zion | Found Prototype Processor 7529 | -7/Zion | Identified Exp. Terrain Scan Processor 7567 | -7/Zion | Discovered new exit (range 5) 7567 | -7/Zion | Saw the warning signs outside the Deep Caves entrance 7732 | -7/Zion | Entered Deep Caves 7732 | -7/Deep Caves | Accompanied by 2 allies 7760 | -7/Deep Caves | Found Surveybot 24 Chip 7761 | -7/Deep Caves | Found Surveybot 24 Scanner 7800 | -7/Deep Caves | Build established: Derelict-Sprinter 7816 | -7/Deep Caves | Attacked by Z-Imprinter 7817 | -7/Deep Caves | Z-Facility disabled 7827 | -7/Deep Caves | Destroyed Z-Imprinter 7880 | -7/Deep Caves | Lost 4 parts (1p2n1u) 7886 | -7/Deep Caves | Discovered new exit (range 6) 7887 | -7/Deep Caves | Entered Proximity Caves 7888 | -6/Proximity Caves | Identified Hacking Drone Bay 7902 | -6/Proximity Caves | Learned Factory stockpile data 8195 | -6/Proximity Caves | Build established: Derelict-Scout 8959 | -6/Proximity Caves | Attracted the attention of an 0b10 outpost 9036 | -6/Proximity Caves | Discovered exit to Factory (range 8) 9038 | -6/Proximity Caves | Entered Factory 9038 | -6/Factory | Evolved 2 slots: Utility x2 9273 | -6/Factory | Discovered new exit (range 22) 9575 | -6/Factory | Spotted B-75 Beast 9635 | -6/Factory | Discovered new exit (range 23) 9665 | -6/Factory | Fabricated Adv. Hacking Suite? 9669 | -6/Factory | Build established: Scavenger-Scout 9669 | -6/Factory | Identified exit to Factory 9712 | -6/Factory | Discovered exit to Factory (range 11) 9738 | -6/Factory | Search patrols dispatched 9763 | -6/Factory | Discovered new exit (range 4) 9764 | -6/Factory | Identified exit to Lower Caves 9767 | -6/Factory | Entered Lower Caves 9773 | -6/Lower Caves | Learned location of 1 exit from Proximity Caves 9815 | -6/Lower Caves | Spotted B-75 Beast 10079 | -6/Lower Caves | Discovered new exit (range 12) 10084 | -6/Lower Caves | Learned Factory terminal intel 10086 | -6/Lower Caves | Identified exit to Lower Caves 10086 | -6/Lower Caves | Entered another Lower Caves area 10088 | -6/Lower Caves | Identified exit to Data Miner 10143 | -6/Lower Caves | Entered Data Miner 10143 | -6/Data Miner | Discovered new exit (range 6) 10146 | -6/Data Miner | Met Data Miner 10154 | -6/Data Miner | Learned location of Section 7 (-2) 10154 | -6/Data Miner | Acquired the access code to Warlord's prototype stash 10157 | -6/Data Miner | Received God Mode back door access code from Data Miner 10163 | -6/Data Miner | Identified exit to Proximity Caves 10163 | -6/Data Miner | Entered Proximity Caves 10180 | -5/Proximity Caves | Escorted by Enhanced Grunt 10180 | -5/Proximity Caves | Attracted the attention of an 0b10 checkpoint 10390 | -5/Proximity Caves | Learned 8 Factory zone layouts 10406 | -5/Proximity Caves | Entered Factory 10406 | -5/Factory | Evolved 2 slots: Utility x2 10407 | -5/Factory | Identified exit to Factory 10409 | -5/Factory | Loaded intel: 26 terminal locations 10515 | -5/Factory | Build established: Scout 10580 | -5/Factory | Identified exit to Upper Caves 10678 | -5/Factory | Entered Upper Caves 10688 | -5/Upper Caves | Learned Factory garrison access intel 10841 | -5/Upper Caves | Discovered new exit (range 15) 10861 | -5/Upper Caves | Identified exit to Upper Caves 10875 | -5/Upper Caves | Entered another Upper Caves area 11120 | -5/Upper Caves | Discovered new exit (range 4) 11120 | -5/Upper Caves | Identified exit to Warlord 11121 | -5/Upper Caves | Entered Warlord 11171 | -5/Warlord | Met Warlord 11175 | -5/Warlord | Opened Warlord's prototype stash 11184 | -5/Warlord | Found Prototype Device 11184 | -5/Warlord | Identified Exp. Phase Shifter 11188 | -5/Warlord | Found Prototype Device 11188 | -5/Warlord | Identified Exp. Focal Shield 11196 | -5/Warlord | Warlord's base attacked by MAIN.C 11196 | -5/Warlord | Found Prototype Hackware 11536 | -5/Warlord | Warlord forces counterattacked 11614 | -5/Warlord | Found Prototype Reactor 11614 | -5/Warlord | Identified Vortex Chain Reactor 11722 | -5/Warlord | Build established: Scavenger-Scout 11778 | -5/Warlord | Spotted B-86 Titan 11806 | -5/Warlord | Found Prototype Ballistic Cannon 11806 | -5/Warlord | Identified Hvy. Autocannon 11871 | -5/Warlord | Warlord base infiltrated, sounded retreat 11979 | -5/Warlord | Spotted Executioner 12049 | -5/Warlord | Spotted Executioner 12050 | -5/Warlord | Spotted Executioner 12076 | -5/Warlord | Found Prototype Slashing Weapon 12076 | -5/Warlord | Identified Particle Cleaver 12079 | -5/Warlord | Found Particle Cleaver 12092 | -5/Warlord | Discovered new exit (range 18) 12096 | -5/Warlord | Spotted Striker 12096 | -5/Warlord | Spotted Striker 12097 | -5/Warlord | Spotted Striker 12131 | -5/Warlord | Identified exit to Proximity Caves 12132 | -5/Warlord | Entered Proximity Caves 12712 | -4/Proximity Caves | Spotted B-86 Titan 12734 | -4/Proximity Caves | Learned location of 1 exit from Upper Caves 12853 | -4/Proximity Caves | Discovered exit to Factory (range 19) 12881 | -4/Proximity Caves | Entered Factory 12881 | -4/Factory | Evolved 2 slots: Utility x1, Weapon x1 12882 | -4/Factory | Loaded intel: 4 garrison access locations 12886 | -4/Factory | Identified System Mapper 13021 | -4/Factory | Discovered new exit (range 19) 13029 | -4/Factory | Identified exit to Upper Caves 13041 | -4/Factory | Incoming investigation squad redirected 13343 | -4/Factory | Discovered new exit (range 8) 13345 | -4/Factory | Identified exit to Extension 13349 | -4/Factory | Entered Extension 13349 | -4/Extension | Accompanied by 1 ally 13364 | -4/Extension | Rescued a captive Derelict 13441 | -4/Extension | Rescued a captive Derelict 13445 | -4/Extension | Rescued a captive Derelict 13445 | -4/Extension | Rescued a captive Derelict 13659 | -4/Extension | Spotted B-86 Titan 13677 | -4/Extension | Identified exit to Cetus 13684 | -4/Extension | Spotted B-86 Titan 13693 | -4/Extension | Destroyed B-86 Titan 13713 | -4/Extension | Allies destroyed B-86 Titan 13740 | -4/Extension | Rescued A7 13743 | -4/Extension | Lost 4 parts (2n2u) 13890 | -4/Extension | Energy Cycler disabled 13890 | -4/Extension | Rescued a captive Derelict 13896 | -4/Extension | Rescued a captive Derelict 13938 | -4/Extension | Discovered new exit (range 10) 13996 | -4/Extension | Entered Cetus 13996 | -4/Cetus | Accompanied by 13 allies (A7) 13998 | -4/Cetus | Spotted Cetus Guard 13998 | -4/Cetus | Spotted Cetus Guard 14001 | -4/Cetus | Acquired a Cetus Manufacturing Module code from A7 14001 | -4/Cetus | Allies destroyed Cetus Guard 14005 | -4/Cetus | Spotted Cetus Guard 14007 | -4/Cetus | Spotted Cetus Guard 14011 | -4/Cetus | Allies destroyed Cetus Guard 14023 | -4/Cetus | Allies destroyed Cetus Guard 14029 | -4/Cetus | Allies destroyed Cetus Guard 14044 | -4/Cetus | Discovered new exit (range 22) 14052 | -4/Cetus | Identified exit to Research 14082 | -4/Cetus | Allies destroyed A7 14091 | -4/Cetus | Extracted ID and sensor layout for unrecognized location from A7's data core 14114 | -4/Cetus | Started Cetus Manufacturing Module 14118 | -4/Cetus | Discovered new exit (range 23) 14139 | -4/Cetus | Manufactured an Enhanced Grunt 14164 | -4/Cetus | Manufactured an Enhanced Grunt 14189 | -4/Cetus | Manufactured an Enhanced Grunt 14214 | -4/Cetus | Manufactured an Enhanced Grunt 14239 | -4/Cetus | Manufactured an Enhanced Grunt 14241 | -4/Cetus | Spotted Cetus Guard 14241 | -4/Cetus | Spotted Cetus Guard 14241 | -4/Cetus | Spotted Cetus Guard 14241 | -4/Cetus | Spotted Cetus Guard 14247 | -4/Cetus | Build established: Scavenger-Mutant 14295 | -4/Cetus | Allies destroyed Cetus Guard 14298 | -4/Cetus | Allies destroyed Cetus Guard 14300 | -4/Cetus | Allies destroyed Cetus Guard 14304 | -4/Cetus | Allies destroyed Cetus Guard 14312 | -4/Cetus | Discovered exit to Research (range 22) 14319 | -4/Cetus | Met Revision 17 14330 | -4/Cetus | Cetus Manufacturing Module disabled 14334 | -4/Cetus | Identified exit to Archives 14369 | -4/Cetus | Entered Archives 14369 | -4/Archives | Accompanied by 3 allies 14437 | -4/Archives | Unable to access archive contents 14452 | -4/Archives | Discovered new exit (range 21) 14454 | -4/Archives | Unable to access archive contents 14469 | -4/Archives | Discovered new exit (range 22) 14474 | -4/Archives | Unable to access archive contents 14526 | -4/Archives | Discovered exit to Research (range 13) 14645 | -4/Archives | Identified exit to Hub_04(d) 14680 | -4/Archives | Entered Hub_04(d) 14680 | -4/Hub_04(d) | Accompanied by 3 allies 14715 | -4/Hub_04(d) | Discovered exit to Research (range 18) 14761 | -4/Hub_04(d) | Discovered exit to Research (range 17) 14787 | -4/Hub_04(d) | Entered Research 14787 | -3/Research | Evolved 2 slots: Utility x2 15078 | -3/Research | Spotted B-86 Titan 15085 | -3/Research | Found Antimissile System 15092 | -3/Research | Discovered new exit (range 12) 15093 | -3/Research | Build established: Scavenger-Scout 15096 | -3/Research | Identified exit to Research 15192 | -3/Research | Lost 4 parts (1p1n2w) 15206 | -3/Research | Found Enh. Force Lance 15211 | -3/Research | System corruption reached 10% 15212 | -3/Research | Identified exit to Testing 15217 | -3/Research | Spotted B-86 Titan 15299 | -3/Research | Lost 3 parts (1n2u) 15334 | -3/Research | Search patrols dispatched 15342 | -3/Research | Entered Testing 15372 | -3/Testing | Lost 14 parts (2p4n5u3w) 15403 | -3/Testing | Found Prototype Slashing Weapon 15403 | -3/Testing | Identified Molecular Scythe 15405 | -3/Testing | Found Molecular Scythe 15438 | -3/Testing | Found Prototype Energy Cannon 15438 | -3/Testing | Identified Disintegrator 15458 | -3/Testing | Found Prototype Device 15458 | -3/Testing | Identified Adv. Kinecellerator 15482 | -3/Testing | Found Prototype Ballistic Cannon 15482 | -3/Testing | Identified Omega Cannon 15558 | -3/Testing | Core integrity fell below 50% 15614 | -3/Testing | Lost 10 parts (1p5n3u1w) 15630 | -3/Testing | Core integrity fell below 20% 15650 | -3/Testing | Destroyed by H-77 Assassin with Coil Gun Last Messages --------------- 15602_ C-55 Analyst calibrates the Vacuum Chamber. 15603_ K-01 Serf cleans the Vacuum Chamber. 15612_ K-01 Serf cleans the Fabricator. 15621_ ,MJ2SKRGPRWGKBT9BFP4|EC 15649_ P-80 Master resets O-16 Technician, system corruption cleaned. 15650_ Penetrated by Slug. Map ----- +----------------------------------------------------+ | " """ """ """ """ """ """ """ """ """ # "" # | | # "T ### | | / + "" #?? | | # "" "# | | # ""# | | ] ###################################### G# | | / ####?????????????????????????????????# """ ""# | | / """#?????????????????????????????????# """ "# | | """#????????????????????????????####?# """ ### | | ""#???????????????????????????? #?# #?# | | %F""#??????????????????????????? #?#######?# | | """#?????????????????????????? ??????????? | | ####????????????????????????? ???????????? | | #???????????????????????????? ????????????? | | ## #??????????????????????????? ?????????????? | | ?# #?????????????????????????? ] ??????????????? | | ?# ###########???????????????? ???????????????? | | ?# # !#??????????????? ????????????????? | | ?# # #?????????????? ?????????????????? | | ?# # """ """ #??????########/#+##???????????????? | | ?# # "" """ #??????# ####????????????? | | ?# # """ """ #??????# #????????????? | | ?# / #??????# #????????????? | | ?# # = #??????# #????????????? | | ?# #[ #?###??# ### ####????????????? | | ?# ######/######T#### @#??????????????????????? | | ?# p op R k #??????????????????????? | | ?# h #??????????????????????? | | ?# ### ############ #??????????????????????? | | ?# #?# ???????????# #??????????????????????? | | ?# #?# ???????????# #??????????????????????? | | ?# #?####???????????# #??????????????????????? | | ?# #????????????????# #??????????????????????? | | ?# #????????????????# #??????????????????????? | | ?# ???????????????? #??????????????????????? | | ?# ???????????????? #??????????????????????? | | ?# ??????????????? ??????????????????????? | | ?# ??????????????? ##?????????????????????? | | ?# #??????????????#### ##??????????????????????? | | ?# ??????????????????# #???????????????????????? | | ?? ??????????????????# #???????????????????????? | | ?? ??????????????????# #???????????????????????? | | ?? ??????????????????# +???????????????????????? | | ?? ??????????????????# #???????????????????????? | | ??????????????????????# #???????????????????????? | | ??????????????????????+ #???????????????????????? | | ??????????????????????? +???????????????????????? | | ??????????????????????? ????????????????????????? | | ???????????????????????+?????????????????????????? | | ?????????????????????????????????????????????????? | +----------------------------------------------------+ Best States ------------- Heat Dissipation 131 Energy Generation 55 Energy Capacity 1300 Matter Stores 300 Matter Capacity 300 Sight Range 23 Robot Scan Range 20 Terrain Scan Range 24 Terrain Scan Density 1010 Cloak Strength 3 Base Temperature (-) 200 Armor Coverage 450 Resistance: KI 30 Core Shielding 30 Phase Shifting 20 Evasion (%) 92 Melee Accuracy 8 Armor Integrity Analysis 30 Recoil Reduction 3 Salvage Targeting 4 Offensive Hacking 24 Defensive Hacking 24 Trap Extractor Capacity 6 Item Schematics ----------------- Adv. Hacking Suite | -6/Factory | Hacked Combat Drone Bay | -6/Data Miner | Free Lgt. Regenerative Plating | -6/Data Miner | Free Cld. Gravmag System | -6/Data Miner | Free Imp. Thermal Defense Suite | -6/Data Miner | Free Thunder Hammer | -6/Data Miner | Free Imp. Gyrokinetic Inverter | -6/Data Miner | Free Adv. Hardlight Generator | -6/Data Miner | Free Dispersion Rifle | -6/Data Miner | Free Adv. VSS Leg | -6/Data Miner | Free Robot Schematics ------------------ L-41 Fighter | -6/Data Miner | Free G-50 Soldier | -6/Data Miner | Free O-32 Director | -6/Data Miner | Free G-67 Veteran | -6/Data Miner | Free A-27 Freighter | -6/Data Miner | Free Fabricated ------------ Adv. Hacking Suite | x1 | -6/Factory Alien Tech Used ----------------- Core Expander Achievements -------------- None Challenges ------------ None Game ------ Seed HackingCryofiberTriangulator Manual? 0 Play Time 03:04:46 Cumulative 651.4 hours Start 2023.04.21 @ 11:47:28 End 2023.04.21 @ 16:14:21 Sessions 1 Manual Loads 0 Difficulty Rogue Special Mode None Game No. 654 Rogue 653 Adventurer 0 Explorer 1 Win Type - Total 31 Types 22/0/6/3/0/0/0/0/0 Lore% 87 Gallery% 92 Achievement% 79 Wizard Run 0 Options --------- ASCII 0 Keyboard 1 Movement Vi Keybinds 0 Fullscreen 1 Font 18/SmallcapsGlow Map View 76x50 Tactical HUD 1 Map Filters NONE Filters NONE Steam 1 RUN: afc6a4ec-5b38-4f81-8d52-833a03434ea8